[Event "IV Elllobregat Open Chess Tmnt"]
[Site "Sant Boi de Llobregat, Spain"]
[Date "2023.12.03"]
[Round "4.38"]
[White "Haldorsen, Benjamin"]
[Black "Nurgaliyev, Sauat"]
[Result "1/2-1/2"]
[TimeControl "90min/40moves + 15min/end + 30sec from move 1"]
[WhiteFideId "1512633"]
[BlackFideId "13726285"]
[WhiteElo "2445"]
[BlackElo "2235"]

1. e4 {[%clk 01:29:36]} {[%emt 00:01:24]} c5 {[%clk 01:30:50]} {[%emt
00:00:11]} 2. c3 {[%clk 01:29:17]} {[%emt 00:00:49]} Nf6 {[%clk 01:29:45]}
{[%emt 00:01:35]} 3. e5 {[%clk 01:29:26]} {[%emt 00:00:21]} Nd5 {[%clk
01:30:02]} {[%emt 00:00:13]} 4. Nf3 {[%clk 01:29:14]} {[%emt 00:00:42]} e6
{[%clk 01:30:05]} {[%emt 00:00:27]} 5. d4 {[%clk 01:28:42]} {[%emt 00:01:02]}
cxd4 {[%clk 01:30:09]} {[%emt 00:00:26]} 6. cxd4 {[%clk 01:28:54]} {[%emt
00:00:18]} d6 {[%clk 01:30:20]} {[%emt 00:00:19]} 7. Bc4 {[%clk 01:28:31]}
{[%emt 00:00:53]} Nc6 {[%clk 01:29:37]} {[%emt 00:01:13]} 8. Qe2 {[%clk
01:17:37]} {[%emt 00:11:24]} Be7 {[%clk 01:26:28]} {[%emt 00:03:38]} 9. O-O
{[%clk 01:17:37]} {[%emt 00:00:31]} O-O {[%clk 01:26:04]} {[%emt 00:00:55]} 10.
a3 {[%clk 01:13:27]} {[%emt 00:04:40]} Qb6 {[%clk 01:20:25]} {[%emt 00:06:08]}
11. Rd1 {[%clk 00:57:45]} {[%emt 00:16:13]} Na5 {[%clk 01:18:07]} {[%emt
00:02:48]} 12. Bxd5 {[%clk 00:50:07]} {[%emt 00:08:08]} exd5 {[%clk 01:18:30]}
{[%emt 00:00:06]} 13. Nc3 {[%clk 00:50:32]} {[%emt 00:00:06]} Be6 {[%clk
01:17:29]} {[%emt 00:01:30]} 14. Bg5 {[%clk 00:45:38]} {[%emt 00:05:23]} Bxg5
{[%clk 01:10:11]} {[%emt 00:07:48]} 15. Nxg5 {[%clk 00:46:02]} {[%emt
00:00:07]} h6 {[%clk 01:10:00]} {[%emt 00:00:42]} 16. Nxe6 {[%clk 00:39:19]}
{[%emt 00:07:12]} fxe6 {[%clk 01:10:23]} {[%emt 00:00:06]} 17. exd6 {[%clk
00:36:34]} {[%emt 00:03:15]} Qxd6 {[%clk 01:09:08]} {[%emt 00:01:46]} 18. Rd3
{[%clk 00:32:32]} {[%emt 00:04:32]} Rf6 {[%clk 01:06:19]} {[%emt 00:03:18]} 19.
Re1 {[%clk 00:32:10]} {[%emt 00:00:53]} Raf8 {[%clk 01:03:54]} {[%emt
00:02:55]} 20. f3 {[%clk 00:32:21]} {[%emt 00:00:19]} Nc6 {[%clk 00:57:06]}
{[%emt 00:07:17]} 21. b4 {[%clk 00:22:40]} {[%emt 00:10:12]} Ne7 {[%clk
00:41:54]} {[%emt 00:15:42]} 22. Qe5 {[%clk 00:14:39]} {[%emt 00:08:31]} Qa6
{[%clk 00:36:59]} {[%emt 00:05:25]} 23. Red1 {[%clk 00:15:04]} {[%emt
00:00:05]} Rc8 {[%clk 00:33:39]} {[%emt 00:03:49]} 24. Ne2 {[%clk 00:14:25]}
{[%emt 00:01:10]} Ng6 {[%clk 00:31:19]} {[%emt 00:02:50]} 25. Qe3 {[%clk
00:14:42]} {[%emt 00:00:12]} Rc2 {[%clk 00:28:59]} {[%emt 00:02:51]} 26. R1d2
{[%clk 00:14:46]} {[%emt 00:00:27]} Rc4 {[%clk 00:27:12]} {[%emt 00:02:16]} 27.
Rc3 {[%clk 00:14:29]} {[%emt 00:00:47]} b5 {[%clk 00:25:13]} {[%emt 00:02:29]}
28. Rxc4 {[%clk 00:13:10]} {[%emt 00:01:50]} bxc4 {[%clk 00:25:38]} {[%emt
00:00:04]} 29. Qc3 {[%clk 00:11:46]} {[%emt 00:01:54]} Ne7 {[%clk 00:20:45]}
{[%emt 00:05:23]} 30. Ng3 {[%clk 00:11:40]} {[%emt 00:00:36]} Qb6 {[%clk
00:18:37]} {[%emt 00:02:38]} 31. Qe3 {[%clk 00:11:30]} {[%emt 00:00:40]} Ng6
{[%clk 00:15:51]} {[%emt 00:03:16]} 32. Ne2 {[%clk 00:10:13]} {[%emt 00:01:48]}
Rf8 {[%clk 00:14:29]} {[%emt 00:01:52]} 33. g3 {[%clk 00:10:08]} {[%emt
00:00:35]} Qd6 {[%clk 00:11:08]} {[%emt 00:03:50]} 34. Kg2 {[%clk 00:10:12]}
{[%emt 00:00:26]} Ne7 {[%clk 00:10:51]} {[%emt 00:00:47]} 35. Rb2 {[%clk
00:06:52]} {[%emt 00:03:50]} Nf5 {[%clk 00:10:59]} {[%emt 00:00:23]} 36. Qc3
{[%clk 00:07:14]} {[%emt 00:00:07]} Re8 {[%clk 00:09:48]} {[%emt 00:01:41]} 37.
f4 {[%clk 00:07:10]} {[%emt 00:00:35]} Qa6 {[%clk 00:09:02]} {[%emt 00:01:16]}
38. g4 {[%clk 00:02:02]} {[%emt 00:05:37]} Nd6 {[%clk 00:08:56]} {[%emt
00:00:36]} 39. Qe3 {[%clk 00:02:12]} {[%emt 00:00:20]} Qa4 {[%clk 00:07:30]}
{[%emt 00:01:56]} 40. Ng3 {[%clk 00:16:49]} {[%emt 00:00:52]} Qd1 {[%clk
00:19:13]} {[%emt 00:03:48]} 41. Re2 {[%clk 00:17:13]} {[%emt 00:00:05]} Qb1
{[%clk 00:12:06]} {[%emt 00:07:37]} 42. Qe5 {[%clk 00:16:27]} {[%emt 00:01:16]}
Nf7 {[%clk 00:11:47]} {[%emt 00:00:49]} 43. Qc7 {[%clk 00:16:29]} {[%emt
00:00:28]} Qg6 {[%clk 00:10:00]} {[%emt 00:02:18]} 44. f5 {[%clk 00:12:27]}
{[%emt 00:04:32]} Qxg4 {[%clk 00:10:05]} {[%emt 00:00:25]} 45. Rxe6 {[%clk
00:12:50]} {[%emt 00:00:07]} Rxe6 {[%clk 00:08:58]} {[%emt 00:01:38]} 46. Qc8+
{[%clk 00:13:01]} {[%emt 00:00:18]} Kh7 {[%clk 00:09:20]} {[%emt 00:00:08]} 47.
Qxe6 {[%clk 00:13:14]} {[%emt 00:00:17]} Ng5 {[%clk 00:08:29]} {[%emt
00:01:21]} 48. Qg6+ {[%emt 00:08:42]} Kh8 {[%clk 00:08:23]} {[%emt 00:00:33]}
49. Qe8+ {[%clk 00:05:23]} {[%emt 00:00:12]} Kh7 {[%clk 00:08:46]} {[%emt
00:00:07]} 50. Qg6+ {[%clk 00:05:41]} {[%emt 00:00:11]} Kh8 {[%clk 00:09:04]}
{[%emt 00:00:12]} 1/2-1/2

[Event "IV Elllobregat Open Chess Tmnt"]
[Site "Sant Boi de Llobregat, Spain"]
[Date "2023.12.03"]
[Round "4.39"]
[White "Johansson, Linus"]
[Black "Van Der Hagen, Loek"]
[Result "1-0"]
[TimeControl "90min/40moves + 15min/end + 30sec from move 1"]
[WhiteFideId "1711113"]
[BlackFideId "1052853"]
[WhiteElo "2439"]
[BlackElo "2200"]

1. c4 {[%clk 01:27:42]} {[%emt 00:03:11]} Nf6 {[%clk 01:30:54]} {[%emt
00:00:13]} 2. Nc3 {[%clk 01:28:08]} {[%emt 00:00:04]} g6 {[%clk 01:31:11]}
{[%emt 00:00:13]} 3. e4 {[%clk 01:28:34]} {[%emt 00:00:04]} d6 {[%clk
01:31:35]} {[%emt 00:00:06]} 4. d4 {[%clk 01:28:59]} {[%emt 00:00:04]} Bg7
{[%clk 01:32:00]} {[%emt 00:00:05]} 5. Be2 {[%clk 01:29:24]} {[%emt 00:00:05]}
e5 {[%clk 01:32:18]} {[%emt 00:00:12]} 6. d5 {[%clk 01:29:02]} {[%emt
00:00:53]} a5 {[%clk 01:32:39]} {[%emt 00:00:09]} 7. h4 {[%clk 01:26:29]}
{[%emt 00:03:02]} Na6 {[%clk 01:33:03]} {[%emt 00:00:07]} 8. h5 {[%clk
01:19:28]} {[%emt 00:07:31]} Nc5 {[%clk 01:33:15]} {[%emt 00:00:18]} 9. hxg6
{[%clk 01:13:12]} {[%emt 00:06:45]} fxg6 {[%clk 01:33:38]} {[%emt 00:00:08]} 10.
Qc2 {[%clk 01:13:30]} {[%emt 00:00:13]} Bd7 {[%clk 01:31:21]} {[%emt 00:02:46]}
11. Be3 {[%clk 01:06:49]} {[%emt 00:07:10]} b6 {[%clk 01:31:02]} {[%emt
00:00:49]} 12. Nh3 {[%clk 01:02:41]} {[%emt 00:04:38]} h6 {[%clk 01:26:01]}
{[%emt 00:05:31]} 13. O-O-O {[%clk 01:00:00]} {[%emt 00:03:11]} Qe7 {[%clk
01:20:54]} {[%emt 00:05:38]} 14. Rdg1 {[%clk 00:59:16]} {[%emt 00:01:14]} g5
{[%clk 00:53:12]} {[%emt 00:28:12]} 15. g4 {[%clk 00:55:37]} {[%emt 00:04:09]}
Nh7 {[%clk 00:53:33]} {[%emt 00:00:09]} 16. Bd1 {[%clk 00:53:36]} {[%emt
00:02:30]} Nf8 {[%clk 00:51:03]} {[%emt 00:03:01]} 17. Ne2 {[%clk 00:53:14]}
{[%emt 00:00:52]} Ng6 {[%clk 00:49:28]} {[%emt 00:02:05]} 18. Ng3 {[%clk
00:53:31]} {[%emt 00:00:12]} Nf4 {[%clk 00:47:40]} {[%emt 00:02:19]} 19. f3
{[%clk 00:49:20]} {[%emt 00:04:41]} Ncd3+ {[%clk 00:44:23]} {[%emt 00:03:47]}
20. Kb1 {[%clk 00:49:01]} {[%emt 00:00:48]} Nxh3 {[%clk 00:44:38]} {[%emt
00:00:16]} 21. Rxh3 {[%clk 00:49:02]} {[%emt 00:00:27]} Nf4 {[%clk 00:45:05]}
{[%emt 00:00:04]} 22. Rh2 {[%clk 00:49:01]} {[%emt 00:00:31]} Kf7 {[%clk
00:43:04]} {[%emt 00:02:32]} 23. Qd2 {[%clk 00:43:16]} {[%emt 00:06:14]} Qf6
{[%clk 00:39:53]} {[%emt 00:03:42]} 24. Bc2 {[%clk 00:42:26]} {[%emt 00:01:20]}
Rhb8 {[%clk 00:37:34]} {[%emt 00:02:49]} 25. Qd1 {[%clk 00:38:49]} {[%emt
00:04:07]} a4 {[%clk 00:36:42]} {[%emt 00:01:22]} 26. Rgh1 {[%clk 00:32:46]}
{[%emt 00:06:32]} Rh8 {[%clk 00:34:11]} {[%emt 00:03:02]} 27. Bc1 {[%clk
00:31:17]} {[%emt 00:01:59]} Ra7 {[%clk 00:31:27]} {[%emt 00:03:14]} 28. Re1
{[%clk 00:31:30]} {[%emt 00:00:16]} Rha8 {[%clk 00:31:01]} {[%emt 00:00:57]} 29.
Re3 {[%clk 00:31:18]} {[%emt 00:00:41]} Qd8 {[%clk 00:29:40]} {[%emt 00:01:51]}
30. Ra3 {[%clk 00:31:28]} {[%emt 00:00:21]} Ra5 {[%clk 00:29:19]} {[%emt
00:00:51]} 31. Bd2 {[%clk 00:29:29]} {[%emt 00:02:28]} R5a7 {[%clk 00:29:25]}
{[%emt 00:00:25]} 32. Rh1 {[%clk 00:25:55]} {[%emt 00:04:03]} Qf6 {[%clk
00:28:42]} {[%emt 00:01:13]} 33. Nf5 {[%clk 00:24:14]} {[%emt 00:02:11]} Ra6
{[%clk 00:24:33]} {[%emt 00:04:40]} 34. Rh2 {[%clk 00:23:26]} {[%emt 00:01:17]}
R6a7 {[%clk 00:08:44]} {[%emt 00:16:20]} 35. Ne3 {[%clk 00:21:05]} {[%emt
00:02:51]} Qd8 {[%clk 00:06:40]} {[%emt 00:02:34]} 36. Qh1 {[%clk 00:21:22]}
{[%emt 00:00:12]} Qf6 {[%clk 00:06:14]} {[%emt 00:00:56]} 37. Nd1 {[%clk
00:21:27]} {[%emt 00:00:25]} Kg8 {[%clk 00:05:35]} {[%emt 00:01:10]} 38. Nc3
{[%clk 00:21:24]} {[%emt 00:00:33]} Qd8 {[%clk 00:02:55]} {[%emt 00:03:10]} 39.
Nb5 {[%clk 00:18:42]} {[%emt 00:03:12]} Ra6 {[%clk 00:01:24]} {[%emt 00:02:01]}
40. Qd1 {[%clk 00:33:07]} {[%emt 00:01:04]} Qc8 {[%clk 00:16:13]} {[%emt
00:00:41]} 41. Bb4 {[%clk 00:29:32]} {[%emt 00:04:05]} Kh7 {[%clk 00:06:28]}
{[%emt 00:10:15]} 42. Bxa4 {[%clk 00:21:10]} {[%emt 00:08:53]} h5 {[%clk
00:06:18]} {[%emt 00:00:40]} 43. Nc3 {[%clk 00:14:39]} {[%emt 00:07:00]} h4
{[%clk 00:04:21]} {[%emt 00:02:27]} 44. Bxd7 {[%clk 00:14:56]} {[%emt
00:00:14]} Qxd7 {[%clk 00:04:50]} {[%emt 00:00:01]} 45. Rxa6 {[%clk 00:15:16]}
{[%emt 00:00:11]} Rxa6 {[%clk 00:05:18]} 46. Qf1 {[%clk 00:14:37]} {[%emt
00:01:08]} c5 {[%clk 00:03:38]} {[%emt 00:02:12]} 47. Ba3 {[%clk 00:13:36]}
{[%emt 00:01:30]} Ra8 {[%clk 00:03:29]} {[%emt 00:00:38]} 48. Nb5 {[%clk
00:12:47]} {[%emt 00:01:19]} Rf8 {[%clk 00:03:40]} {[%emt 00:00:19]} 49. b3
{[%clk 00:12:48]} {[%emt 00:00:29]} Qe7 {[%clk 00:03:09]} {[%emt 00:01:02]} 50.
Bc1 {[%clk 00:13:00]} {[%emt 00:00:17]} Ng6 {[%clk 00:03:19]} {[%emt 00:00:21]}
51. Rf2 {[%clk 00:12:51]} {[%emt 00:00:39]} Rf7 {[%clk 00:03:29]} {[%emt
00:00:20]} 52. Nc3 {[%clk 00:12:53]} {[%emt 00:00:28]} Nf4 {[%clk 00:02:49]}
{[%emt 00:01:10]} 53. Nd1 {[%clk 00:13:11]} {[%emt 00:00:11]} Qd8 {[%clk
00:02:06]} {[%emt 00:01:14]} 54. Ne3 {[%clk 00:13:29]} {[%emt 00:00:12]} Kg6
{[%clk 00:01:59]} {[%emt 00:00:36]} 55. Nf5 {[%clk 00:13:43]} {[%emt 00:00:16]}
Bf6 {[%clk 00:02:28]} {[%emt 00:00:02]} 56. a4 {[%clk 00:13:23]} {[%emt
00:00:49]} Ra7 {[%clk 00:02:41]} {[%emt 00:00:17]} 57. Ra2 {[%clk 00:13:23]}
{[%emt 00:00:31]} Rh7 {[%clk 00:02:35]} {[%emt 00:00:36]} 58. Rh2 {[%clk
00:12:49]} {[%emt 00:01:03]} Ra7 {[%clk 00:02:58]} {[%emt 00:00:07]} 59. Qd1
{[%clk 00:12:49]} {[%emt 00:00:30]} Qd7 {[%clk 00:02:53]} {[%emt 00:00:36]} 60.
Qc2 {[%clk 00:13:04]} {[%emt 00:00:14]} Qd8 {[%clk 00:02:51]} {[%emt 00:00:33]}
61. Be3 {[%clk 00:13:11]} {[%emt 00:00:22]} Rh7 {[%clk 00:02:41]} {[%emt
00:00:41]} 62. Kc1 {[%clk 00:13:19]} {[%emt 00:00:22]} Qd7 {[%clk 00:02:03]}
{[%emt 00:01:08]} 63. Kd1 {[%clk 00:13:30]} {[%emt 00:00:19]} Bd8 {[%clk
00:02:14]} {[%emt 00:00:19]} 64. Ke1 {[%clk 00:12:36]} {[%emt 00:01:24]} Bf6
{[%clk 00:01:05]} {[%emt 00:01:39]} 65. Kf1 {[%clk 00:12:51]} {[%emt 00:00:15]}
Rh8 {[%clk 00:01:13]} {[%emt 00:00:23]} 66. Kg1 {[%clk 00:11:30]} {[%emt
00:01:50]} Kf7 {[%clk 00:01:36]} {[%emt 00:00:07]} 67. Kh1 {[%clk 00:11:33]}
{[%emt 00:00:27]} Ra8 {[%clk 00:01:47]} {[%emt 00:00:19]} 68. Rd2 {[%clk
00:11:24]} {[%emt 00:00:39]} Qc7 {[%clk 00:01:48]} {[%emt 00:00:29]} 69. Kh2
{[%clk 00:11:20]} {[%emt 00:00:34]} Ng6 {[%clk 00:01:50]} {[%emt 00:00:27]} 70.
Rd1 {[%clk 00:11:32]} {[%emt 00:00:18]} Ne7 {[%clk 00:01:40]} {[%emt 00:00:41]}
71. Rb1 {[%clk 00:11:41]} {[%emt 00:00:20]} Nxf5 {[%clk 00:01:57]} {[%emt
00:00:13]} 72. gxf5 {[%clk 00:12:02]} {[%emt 00:00:09]} Rg8 {[%clk 00:01:18]}
{[%emt 00:01:10]} 73. Kh3 {[%clk 00:11:33]} {[%emt 00:00:59]} Qa7 {[%clk
00:01:20]} {[%emt 00:00:28]} 74. Rg1 {[%clk 00:11:23]} {[%emt 00:00:39]} Rg7
{[%clk 00:01:19]} {[%emt 00:00:31]} 75. Qc1 {[%clk 00:11:22]} {[%emt 00:00:31]}
Qe7 {[%clk 00:01:34]} {[%emt 00:00:16]} 76. Qd2 {[%clk 00:11:46]} {[%emt
00:00:05]} Qe8 {[%clk 00:01:01]} {[%emt 00:01:04]} 77. Rg2 {[%clk 00:11:42]}
{[%emt 00:00:33]} Qd8 {[%clk 00:00:45]} {[%emt 00:00:46]} 78. b4 {[%clk
00:11:43]} {[%emt 00:00:30]} Kg8 {[%clk 00:00:50]} {[%emt 00:00:25]} 79. bxc5
{[%clk 00:11:42]} {[%emt 00:00:30]} bxc5 {[%clk 00:01:15]} {[%emt 00:00:05]} 80.
a5 {[%clk 00:11:54]} {[%emt 00:00:18]} Kh7 {[%clk 00:01:41]} {[%emt 00:00:04]}
81. Rg4 {[%clk 00:11:28]} {[%emt 00:00:56]} Qe7 {[%clk 00:01:13]} {[%emt
00:00:58]} 82. a6 {[%clk 00:11:00]} {[%emt 00:00:58]} Qd8 {[%clk 00:01:39]}
{[%emt 00:00:04]} 83. a7 {[%clk 00:08:56]} {[%emt 00:02:34]} Rxa7 {[%clk
00:01:51]} {[%emt 00:00:19]} 84. Bxg5 {[%clk 00:09:20]} {[%emt 00:00:05]} Ra3
{[%clk 00:01:47]} {[%emt 00:00:34]} 85. Bxf6 {[%clk 00:07:51]} {[%emt
00:01:59]} Qxf6 {[%clk 00:02:03]} {[%emt 00:00:14]} 86. Qg2 {[%clk 00:08:10]}
{[%emt 00:00:11]} 1-0

[Event "IV Elllobregat Open Chess Tmnt"]
[Site "Sant Boi de Llobregat, Spain"]
[Date "2023.12.03"]
[Round "4.40"]
[White "Wahedi, Ahmad Siar"]
[Black "Siddharth, Jagadeesh"]
[Result "0-1"]
[TimeControl "90min/40moves + 15min/end + 30sec from move 1"]
[WhiteFideId "4651260"]
[BlackFideId "5818320"]
[WhiteElo "2275"]
[BlackElo "2438"]

1. d4 {[%clk 01:30:57]} {[%emt 00:00:02]} Nf6 {[%clk 01:30:50]} {[%emt
00:00:10]} 2. Nf3 {[%clk 01:30:38]} {[%emt 00:00:50]} g6 {[%clk 01:31:09]}
{[%emt 00:00:10]} 3. c4 {[%clk 01:30:44]} {[%emt 00:00:24]} Bg7 {[%clk
01:31:25]} {[%emt 00:00:13]} 4. Nc3 {[%clk 01:30:36]} {[%emt 00:00:40]} O-O
{[%clk 01:31:45]} {[%emt 00:00:09]} 5. e3 {[%clk 01:30:56]} {[%emt 00:00:11]}
c5 {[%clk 01:29:33]} {[%emt 00:02:42]} 6. d5 {[%clk 01:29:53]} {[%emt
00:01:33]} d6 {[%clk 01:27:17]} {[%emt 00:02:45]} 7. Be2 {[%clk 01:26:07]}
{[%emt 00:04:17]} e6 {[%clk 01:25:42]} {[%emt 00:02:04]} 8. dxe6 {[%clk
01:16:12]} {[%emt 00:10:25]} Bxe6 {[%clk 01:20:29]} {[%emt 00:05:41]} 9. Ng5
{[%clk 01:16:04]} {[%emt 00:00:41]} Bf5 {[%clk 01:16:58]} {[%emt 00:04:00]} 10.
h4 {[%clk 01:15:36]} {[%emt 00:00:58]} h6 {[%clk 01:00:42]} {[%emt 00:16:46]}
11. g4 {[%clk 01:08:38]} {[%emt 00:07:28]} Bd7 {[%clk 00:56:12]} {[%emt
00:05:00]} 12. Nh3 {[%clk 01:08:40]} {[%emt 00:00:29]} Bc6 {[%clk 00:50:03]}
{[%emt 00:06:38]} 13. Bf3 {[%clk 01:03:51]} {[%emt 00:05:20]} Nfd7 {[%clk
00:48:40]} {[%emt 00:01:51]} 14. Bxc6 {[%clk 01:02:16]} {[%emt 00:02:07]} Nxc6
{[%clk 00:46:30]} {[%emt 00:02:39]} 15. Qxd6 {[%clk 01:02:36]} {[%emt
00:00:10]} Nce5 {[%clk 00:37:30]} {[%emt 00:09:30]} 16. h5 {[%clk 01:02:50]}
{[%emt 00:00:16]} Nxc4 {[%clk 00:35:31]} {[%emt 00:02:29]} 17. Qd5 {[%clk
01:02:22]} {[%emt 00:00:58]} Ncb6 {[%clk 00:25:43]} {[%emt 00:10:18]} 18. Qg2
{[%clk 01:00:34]} {[%emt 00:02:18]} Ne5 {[%clk 00:25:19]} {[%emt 00:00:54]} 19.
g5 {[%clk 00:58:01]} {[%emt 00:03:04]} hxg5 {[%clk 00:23:19]} {[%emt 00:02:29]}
20. Bd2 {[%clk 00:53:26]} {[%emt 00:05:05]} Nbc4 {[%clk 00:19:17]} {[%emt
00:04:32]} 21. Rd1 {[%clk 00:49:03]} {[%emt 00:04:53]} Nxb2 {[%clk 00:18:50]}
{[%emt 00:00:56]} 22. f4 {[%clk 00:49:25]} {[%emt 00:00:09]} Nec4 {[%emt
00:08:05]} 23. Nd5 {[%clk 00:44:26]} Nxd1 {[%clk 00:15:01]} {[%emt 00:02:13]}
24. Kxd1 {[%clk 00:44:48]} {[%emt 00:00:08]} Nxd2 {[%clk 00:11:43]} {[%emt
00:03:48]} 25. Qxd2 {[%clk 00:44:42]} {[%emt 00:00:36]} Qxd5 {[%clk 00:08:32]}
{[%emt 00:03:42]} 26. Qxd5 {[%clk 00:43:43]} {[%emt 00:01:29]} Rad8 {[%clk
00:08:53]} {[%emt 00:00:08]} 27. Qd2 {[%clk 00:43:26]} {[%emt 00:00:47]} Rxd2+
{[%clk 00:08:35]} {[%emt 00:00:48]} 28. Kxd2 {[%clk 00:43:52]} {[%emt
00:00:05]} Rd8+ {[%clk 00:09:00]} {[%emt 00:00:05]} 29. Kc2 {[%clk 00:44:08]}
{[%emt 00:00:14]} gxf4 {[%clk 00:08:24]} {[%emt 00:01:05]} 30. Nxf4 {[%clk
00:44:04]} {[%emt 00:00:34]} gxh5 {[%clk 00:07:05]} {[%emt 00:01:50]} 31. Rxh5
{[%clk 00:42:48]} {[%emt 00:01:46]} b6 {[%clk 00:06:39]} {[%emt 00:00:55]} 32.
a4 {[%clk 00:41:13]} {[%emt 00:02:05]} Kf8 {[%clk 00:03:22]} {[%emt 00:03:47]}
33. Nd5 {[%clk 00:39:59]} {[%emt 00:01:45]} Re8 {[%clk 00:02:57]} {[%emt
00:00:55]} 34. Kd3 {[%clk 00:38:55]} {[%emt 00:01:33]} Re5 {[%clk 00:01:39]}
{[%emt 00:01:48]} 35. Rxe5 {[%clk 00:39:18]} {[%emt 00:00:07]} Bxe5 {[%clk
00:02:08]} 36. Kc4 {[%clk 00:39:10]} {[%emt 00:00:39]} Ke8 {[%clk 00:02:30]}
{[%emt 00:00:08]} 37. e4 {[%clk 00:28:23]} {[%emt 00:11:16]} Kd7 {[%clk
00:02:36]} {[%emt 00:00:23]} 38. Kb5 {[%clk 00:28:49]} {[%emt 00:00:05]} Kc8
{[%clk 00:02:07]} {[%emt 00:00:59]} 39. Ka6 {[%clk 00:28:22]} {[%emt 00:00:57]}
c4 {[%clk 00:01:18]} {[%emt 00:01:19]} 40. Kb5 {[%clk 00:36:43]} {[%emt
00:07:09]} c3 {[%clk 00:16:22]} {[%emt 00:00:27]} 41. Nb4 {[%clk 00:37:11]}
{[%emt 00:00:02]} Kd7 {[%clk 00:08:53]} {[%emt 00:07:59]} 42. Nd3 {[%clk
00:34:34]} {[%emt 00:03:06]} Kd6 {[%clk 00:08:14]} {[%emt 00:01:09]} 43. Kc4
{[%clk 00:34:21]} {[%emt 00:00:44]} Bg7 {[%clk 00:07:50]} {[%emt 00:00:54]} 44.
Kb3 {[%clk 00:33:06]} {[%emt 00:01:45]} a6 {[%clk 00:06:06]} {[%emt 00:02:13]}
45. Kc4 {[%clk 00:31:56]} {[%emt 00:01:40]} b5+ {[%clk 00:05:40]} {[%emt
00:00:57]} 46. axb5 {[%clk 00:31:14]} {[%emt 00:01:11]} axb5+ {[%clk 00:06:09]}
{[%emt 00:00:02]} 47. Kb4 {[%clk 00:31:28]} {[%emt 00:00:15]} Bd4 {[%clk
00:06:11]} {[%emt 00:00:28]} 48. Kb3 {[%clk 00:31:20]} {[%emt 00:00:38]} Ke6
{[%clk 00:06:34]} {[%emt 00:00:07]} 49. Kc2 {[%clk 00:30:10]} {[%emt 00:01:41]}
Kf6 {[%clk 00:05:47]} {[%emt 00:01:15]} 50. Nb4 {[%clk 00:30:21]} {[%emt
00:00:20]} Ke5 {[%clk 00:05:18]} {[%emt 00:00:59]} 51. Kd3 {[%clk 00:30:23]}
{[%emt 00:00:28]} Bc5 {[%clk 00:05:26]} {[%emt 00:00:21]} 52. Nc6+ {[%clk
00:30:33]} {[%emt 00:00:21]} Kd6 {[%clk 00:05:26]} {[%emt 00:00:28]} 53. Na5
{[%clk 00:30:48]} {[%emt 00:00:18]} Bb6 {[%clk 00:04:42]} {[%emt 00:01:13]} 54.
Nb3 {[%clk 00:31:02]} {[%emt 00:00:16]} Ke5 {[%clk 00:04:44]} {[%emt 00:00:28]}
55. Kxc3 {[%clk 00:28:44]} {[%emt 00:02:49]} Kxe4 {[%clk 00:05:11]} {[%emt
00:00:02]} 56. Nd2+ {[%clk 00:28:52]} {[%emt 00:00:22]} Ke3 {[%clk 00:03:08]}
{[%emt 00:02:32]} 57. Kc2 {[%clk 00:29:16]} {[%emt 00:00:07]} f5 {[%clk
00:02:41]} {[%emt 00:00:57]} 58. Kd1 {[%clk 00:29:19]} {[%emt 00:00:27]} f4
{[%clk 00:02:32]} {[%emt 00:00:38]} 59. Nf1+ {[%clk 00:29:14]} {[%emt
00:00:36]} Kf2 {[%clk 00:02:44]} {[%emt 00:00:18]} 60. Nd2 {[%clk 00:29:34]}
{[%emt 00:00:11]} f3 {[%clk 00:02:38]} {[%emt 00:00:35]} 61. Ne4+ {[%clk
00:29:06]} {[%emt 00:00:58]} Kg2 {[%clk 00:02:53]} {[%emt 00:00:14]} 0-1